bitfinex/quotes_ETHUSD_20251217
["timestamp","ask_amount","ask_price","bid_price","bid_amount"]
[1765954167953,0.4519,2938.7,2938.3,3.40324956]
[1765954168755,0.91112983,2938.9,2938.4,0.4684]
[1765954169258,0.3866331,2939.0,2938.7,0.4684]
[1765954169432,0.001,2939.0,2938.6,7.27436202]
[1765954169871,0.001,2939.0,2938.9,0.4992]
[1765954170655,0.001,2939.0,2938.7,0.4684]
[1765954171064,0.001,2939.0,2938.9,0.9676]
[1765954171271,0.001,2939.0,2938.9,4.37023363]
[1765954171630,0.001,2939.0,2938.9,5.42273123]
[1765954171846,0.001,2939.0,2938.9,9.00096236]
[1765954173760,0.001,2939.0,2938.9,8.72096235]
[1765954174158,0.001,2939.0,2938.9,9.13674349]
[1765954190700,0.001,2939.0,2938.9,9.60112372]
[1765954190903,0.001,2939.2,2939.1,1.519404]
[1765954191200,0.001,2939.2,2939.1,3.38350513]
[1765954191569,0.001,2939.2,2939.1,6.78590722]
[1765954194614,0.001,2939.2,2939.1,10.36413835]
[1765954194915,0.001,2939.2,2939.1,17.32009835]
[1765954195077,0.001,2939.2,2939.1,15.99259835]
[1765954195409,0.001,2939.2,2939.1,14.16790535]
[1765954196500,0.001,2939.2,2939.1,10.36413835]
[1765954196703,0.001,2939.2,2939.1,10.36106199]
[1765954210692,0.001,2939.2,2939.1,10.90006199]
[1765954213526,0.001,2939.2,2939.1,10.90071958]
[1765954219109,0.001,2939.2,2939.1,10.36171958]
[1765954219427,0.001,2939.2,2939.1,10.90071958]
[1765954224832,0.001,2939.2,2939.1,14.47653194]
[1765954226798,0.001,2939.2,2939.1,10.90071958]
[1765954228332,0.001,2939.2,2939.1,14.47653194]
[1765954232249,0.001,2939.2,2939.1,10.90071958]
[1765954236148,0.001,2939.2,2939.1,10.36171958]
[1765954236326,0.001,2939.2,2939.1,10.90071958]
[1765954236522,0.001,2939.2,2939.1,10.49521558]
[1765954240350,0.001,2939.2,2939.1,10.49521558]
[1765954241216,0.001,2939.2,2939.1,6.91940322]
[1765954241516,0.001,2939.2,2939.1,10.49521558]
[1765954253561,0.001,2939.2,2939.1,8.55649468]
[1765954253740,0.001,2939.2,2939.1,9.10577182]
[1765954254063,0.001,2939.2,2939.1,9.09549468]
[1765954254761,0.001,2939.2,2939.1,4.98068232]
[1765954255068,0.001,2939.2,2939.1,3.86120209]
[1765954256775,0.001,2939.2,2939.1,4.53127923]
[1765954256929,0.001,2939.2,2939.1,5.39231475]
[1765954257426,0.001,2939.2,2939.1,6.26219898]
[1765954257855,0.001,2939.2,2939.1,22.94126621]
[1765954258059,0.001,2939.2,2939.1,22.90724219]
[1765954258353,0.001,2939.2,2939.1,18.21395897]
[1765954260550,0.001,2939.2,2939.1,16.34975797]
[1765954261558,0.001,2939.2,2939.1,6.90348461]
[1765954262063,0.001,2939.2,2939.1,6.90248461]
[1765954262264,0.001,2939.2,2939.1,10.47829697]
[1765954265458,0.001,2939.2,2939.1,10.47830064]
[1765954273384,0.001,2939.2,2939.1,10.47821498]
[1765954277877,0.001,2939.2,2939.1,16.29880098]
[1765954278178,0.001,2939.2,2939.1,19.87453135]
[1765954278373,0.001,2939.2,2939.1,16.29880098]
[1765954285381,0.001,2939.2,2939.1,15.90123398]
[1765954286757,0.001,2939.2,2939.1,19.47696435]
[1765954287755,0.001,2939.2,2939.1,15.90123398]
[1765954291974,0.001,2939.6,2939.5,0.877404]
[1765954292181,0.001,2939.6,2939.5,5.45273437]
[1765954292379,0.001,2939.6,2939.5,5.99903552]
[1765954292680,0.001,2939.6,2939.5,6.13532473]
[1765954295604,0.001,2939.6,2939.5,9.53726383]
[1765954295760,0.001,2939.6,2939.5,9.54754097]
[1765954309743,0.001,2939.6,2939.5,6.43619083]
[1765954316231,0.001,2939.6,2939.5,5.49268683]
[1765954316531,0.001,2939.6,2939.5,9.06011605]
[1765954316734,0.001,2939.6,2939.5,8.92382684]
[1765954317034,0.001,2939.6,2939.5,9.06012674]
[1765954317817,0.001,2939.6,2939.5,5.48439637]
[1765954322349,0.001,2939.6,2939.5,5.88990037]
[1765954322515,0.001,2939.6,2939.5,7.53526896]
[1765954326227,0.001,2939.6,2939.5,10.35824296]
[1765954328920,0.001,2939.6,2939.5,7.53526896]
[1765954331771,0.001,2939.6,2939.5,4.023239]
[1765954331919,0.001,2939.6,2939.5,8.515266]
[1765954332124,0.001,2939.6,2939.5,8.48124661]
[1765954332737,0.001,2939.6,2939.5,4.90551624]
[1765954332934,0.001,2939.6,2939.5,4.93953563]
[1765954333135,0.001,2939.6,2939.5,6.62513575]
[1765954333329,0.001,2939.6,2939.5,6.99662036]
[1765954333622,0.001,2939.6,2939.5,10.57130383]
[1765954333847,0.001,2939.6,2939.5,11.03568406]
[1765954334934,0.001,2939.6,2939.5,11.03536763]
[1765954340032,0.001,2939.6,2939.5,7.05549659]
[1765954364174,0.001,2939.6,2939.5,7.46100059]
[1765954365053,0.001,2940.0,2939.9,1.340904]
[1765954365379,0.001,2940.0,2939.9,9.52603307]
[1765954365549,0.001,2940.0,2939.9,10.44564933]
[1765954366163,0.001,2940.0,2939.9,10.58190837]
[1765954366478,0.001,2940.0,2939.9,13.98338461]
[1765954367180,0.001,2940.0,2939.9,13.99366175]
[1765954369455,0.001,2940.0,2939.9,26.96060697]
[1765954370580,0.001,2940.0,2939.9,26.42260697]
[1765954370749,0.001,2940.0,2939.9,26.96060697]
[1765954373874,0.001,2940.8,2940.6,0.9354]
[1765954374073,0.001,2940.8,2940.6,5.04776704]
[1765954374277,0.001,2940.8,2940.6,6.01795169]
[1765954374477,0.001,2940.8,2940.6,6.15419773]
[1765954374785,0.001,2940.8,2940.6,9.55486426]
[1765954374985,0.001,2940.8,2940.6,9.5651414]
[1765954379365,0.001,2940.8,2940.6,13.13950844]
[1765954379666,0.001,2940.8,2940.6,13.54501244]
[1765954380696,0.001,2940.8,2940.6,4.9366928]
[1765954380895,0.001,2940.8,2940.6,4.40304676]
[1765954381196,0.4836,2940.7,2940.6,3.40066653]
[1765954381415,0.245,2940.2,2939.8,0.4671]
[1765954381697,0.4654,2940.4,2940.0,7.26981766]
[1765954381993,0.7278,2940.1,2940.0,3.40135712]
[1765954383382,0.7288,2940.1,2940.0,3.40135712]
[1765954385820,0.7288,2940.1,2939.6,0.93148023]
[1765954385821,0.1825,2939.9,2939.8,3.4015733]
[1765954385989,0.9254,2939.9,2939.8,3.4015733]
[1765954386168,0.9254,2939.9,2939.5,0.002]
[1765954386169,0.2561,2939.6,2939.5,3.4039391]
[1765954386489,0.7406,2939.6,2939.5,3.9419391]
[1765954386690,0.2561,2939.6,2939.5,3.9419391]
[1765954386890,0.4845,2939.8,2939.5,7.8039782]
[1765954387068,0.6693,2939.9,2939.5,7.8039782]
[1765954387696,0.1825,2939.9,2939.5,7.8039782]
[1765954387867,0.4868,2939.8,2939.5,7.8039782]
[1765954388469,0.2561,2939.6,2939.5,3.9419391]
[1765954390200,0.7406,2939.6,2939.5,3.4039391]
[1765954390698,0.7406,2939.6,2939.5,3.9419391]
[1765954391692,0.7406,2939.6,2939.5,3.4039391]
[1765954392366,0.2561,2939.6,2939.5,0.54]
[1765954392796,0.2561,2939.6,2939.5,0.002]
[1765954392969,0.2561,2939.6,2939.5,0.54]
[1765954394771,0.2561,2939.6,2939.5,3.9419391]
[1765954394975,0.4845,2939.8,2939.5,7.3438782]
[1765954395174,0.2584,2939.6,2939.5,3.9419391]
[1765954395570,0.7407,2939.6,2939.5,3.9419391]
[1765954399913,0.6772,2940.1,2939.5,8.2562782]
[1765954400112,0.4868,2940.0,2939.5,8.2562782]
[1765954401694,0.001,2940.1,2939.6,0.4523]
[1765954401877,0.001,2940.1,2939.6,0.46257714]
[1765954402079,0.4878,2940.1,2939.6,0.46257714]
[1765954402281,0.4878,2940.1,2939.6,0.4523]
[1765954402506,0.4878,2940.1,2939.5,7.3438782]
[1765954403205,0.4878,2940.1,2939.5,7.7961782]
[1765954406124,0.4878,2940.1,2939.5,7.3438782]
[1765954407227,0.4878,2940.1,2939.6,0.01027714]
[1765954408031,0.2492,2939.7,2939.5,6.8058782]
[1765954408206,0.4551,2939.6,2939.5,3.4039391]
[1765954408534,0.2806,2939.8,2939.5,7.2659782]
[1765954409099,0.1894,2939.9,2939.5,7.2659782]
[1765954409299,0.6762,2939.9,2939.5,7.7182782]
[1765954416028,0.001,2940.1,2939.5,7.7182782]
[1765954416203,0.4728,2940.1,2939.5,7.7182782]
[1765954417102,0.4728,2940.1,2939.5,7.2659782]
[1765954417729,0.86018299,2940.1,2939.5,7.2659782]
[1765954418035,0.4875,2940.0,2939.5,7.7482782]
[1765954421334,0.4875,2939.8,2939.5,7.2659782]
[1765954423238,0.1868,2939.9,2939.5,7.2659782]
[1765954426643,0.6743,2939.9,2939.5,7.2881782]
[1765954440355,0.1868,2939.9,2939.5,6.8058782]
[1765954440651,0.2511,2939.6,2939.5,3.4039391]
[1765954441029,0.4875,2939.8,2939.5,6.8058782]
[1765954441229,0.6743,2939.9,2939.5,7.2881782]
[1765954441558,0.4875,2939.8,2939.5,6.8058782]
[1765954442965,0.2511,2939.6,2939.5,0.002]
[1765954443161,0.1868,2939.9,2939.5,0.9532]
[1765954443349,0.4875,2939.8,2939.5,0.4709]
[1765954444064,0.4875,2939.8,2939.5,0.002]
[1765954444462,0.001,2940.1,2939.5,0.4942]
[1765954444661,0.001,2940.1,2939.5,1.72027938]
[1765954444866,0.001,2940.1,2939.6,0.50247714]
[1765954445066,0.001,2940.1,2939.8,3.40159194]
[1765954445261,0.4986,2940.1,2939.8,3.40159194]
[1765954445468,0.4986,2940.1,2939.8,6.80318388]
[1765954445767,0.4986,2940.1,2939.8,3.40159194]
[1765954445965,0.2421,2939.9,2939.8,3.40159194]
[1765954446148,0.5026,2939.8,2939.7,3.93966096]
[1765954446351,0.4976,2939.8,2939.6,3.40176745]
[1765954446542,0.7371,2939.7,2939.6,3.40176745]
[1765954454055,0.5026,2939.6,2939.5,0.002]
[1765954455878,0.1858,2939.9,2939.5,0.4686]
[1765954456075,0.2421,2939.6,2939.5,0.002]
[1765954458476,0.7371,2939.6,2939.5,0.002]
[1765954461866,1.16852295,2939.6,2939.5,0.002]
[1765954462456,0.67352295,2939.6,2939.5,0.002]
[1765954462761,1.16852295,2939.6,2939.5,0.002]
[1765954467303,1.16576213,2939.6,2939.5,0.002]
[1765954467797,0.73433918,2939.6,2939.5,0.002]
[1765954474200,0.23933918,2939.6,2939.5,0.002]
[1765954474407,0.69873918,2939.6,2939.5,0.002]
[1765954482115,0.69973918,2939.6,2939.5,0.002]
[1765954485794,0.24033918,2939.6,2939.5,0.002]
[1765954486932,0.001,2939.6,2939.5,0.4667]
[1765954487093,0.001,2939.6,2939.5,0.9548]
[1765954487293,0.001,2939.6,2939.5,0.002]
[1765954487294,0.4778,2939.6,2939.5,0.002]
[1765954487495,0.7402,2939.6,2939.5,0.002]
[1765954488315,0.4778,2939.6,2939.5,0.002]
[1765954488915,0.7402,2939.6,2939.5,0.002]
[1765954489303,0.4778,2939.6,2939.5,0.002]
[1765954490231,0.4778,2939.6,2939.5,3.4039391]
[1765954493125,0.4778,2939.6,2939.5,3.8686391]
[1765954493126,0.001,2939.6,2939.5,3.8686391]
[1765954493325,0.001,2939.6,2939.5,5.18641793]
[1765954494123,0.001,2939.6,2939.5,5.69509469]
[1765954494322,0.001,2939.6,2939.5,6.1377753]
[1765954494523,0.001,2939.6,2939.5,6.57729869]
[1765954494699,0.001,2939.6,2939.5,6.5432793]
[1765954502215,0.001,2939.6,2939.5,6.6757753]
[1765954502415,0.001,2939.6,2939.5,5.84609647]
[1765954504920,0.001,2939.6,2939.5,5.3714391]
[1765954506221,0.001,2939.6,2939.5,4.8334391]
[1765954506426,0.001,2939.6,2939.5,3.9419391]
[1765954506427,0.2776,2939.6,2939.5,3.9419391]
[1765954507112,0.2776,2939.6,2939.5,3.4039391]
[1765954507113,0.7322,2939.6,2939.5,3.4039391]
[1765954507309,0.7322,2939.6,2939.5,0.002]
[1765954507515,1.16318529,2939.6,2939.5,0.002]
[1765954508116,0.7322,2939.6,2939.5,0.002]
[1765954508452,4.13402337,2939.6,2939.5,0.002]
[1765954509644,0.7322,2939.6,2939.5,0.002]
[1765954510049,4.13402337,2939.6,2939.5,0.002]
[1765954510354,0.7322,2939.6,2939.5,0.002]
[1765954510524,1.50335922,2939.6,2939.5,0.002]
[1765954510849,4.90518259,2939.6,2939.5,0.002]
[1765954514057,1.50335922,2939.6,2939.5,0.002]
[1765954515356,4.90518259,2939.6,2939.5,0.002]
[1765954517382,8.48371793,2939.6,2939.5,0.002]
[1765954518289,5.08189456,2939.6,2939.5,0.002]
[1765954518507,1.50335922,2939.6,2939.5,0.002]
[1765954522184,4.90518259,2939.6,2939.5,0.002]
[1765954524468,1.50335922,2939.6,2939.5,0.002]
[1765954524665,4.90518259,2939.6,2939.5,0.002]
[1765954525792,1.50335922,2939.6,2939.5,0.002]
[1765954530669,0.7322,2939.6,2939.5,0.002]
[1765954534386,4.13402337,2939.6,2939.5,0.002]
[1765954534799,0.7322,2939.6,2939.5,0.002]
[1765954537879,0.494,2939.6,2939.5,0.002]
[1765954538178,0.7344,2939.6,2939.5,0.002]
[1765954539010,1.14799957,2939.6,2939.5,0.002]
[1765954541082,0.7344,2939.6,2939.5,0.002]
[1765954548906,0.001,2939.6,2939.5,0.929]
[1765954549814,0.001,2939.6,2939.5,4.3309391]
[1765954552013,0.001,2939.6,2939.5,3.8564391]
[1765954552199,0.2731,2939.6,2939.5,3.4039391]
[1765954552395,0.7413,2939.6,2939.5,3.4039391]
[1765954552911,0.2731,2939.6,2939.5,3.4039391]
[1765954554521,0.2731,2939.6,2939.5,0.002]
[1765954555797,0.7413,2939.6,2939.5,0.002]
[1765954556419,0.2731,2939.6,2939.5,0.002]
[1765954558705,0.7413,2939.6,2939.5,0.002]
[1765954566097,1.15560083,2939.6,2939.5,0.002]
[1765954568802,0.2731,2939.6,2939.5,0.002]
[1765954569900,0.001,2939.6,2939.5,0.002]
[1765954570129,0.001,2939.6,2939.5,0.502]
[1765954570630,0.2751,2939.6,2939.5,0.002]
[1765954571140,0.7413,2939.6,2939.5,0.002]
[1765954576830,0.2751,2939.6,2939.5,0.002]
[1765954577130,0.7413,2939.6,2939.5,0.002]
[1765954581307,0.2751,2939.6,2939.5,0.002]
[1765954581510,0.7413,2939.6,2939.5,0.002]
[1765954585135,4.14312337,2939.6,2939.5,0.002]
[1765954585328,5.42598412,2939.6,2939.5,0.002]
[1765954589557,5.56234814,2939.6,2939.5,0.002]
[1765954591211,6.10034814,2939.6,2939.5,0.002]
[1765954592756,5.56234814,2939.6,2939.5,0.002]
[1765954592918,6.10034814,2939.6,2939.5,0.002]
[1765954596539,9.67764975,2939.6,2939.5,0.002]
[1765954600017,6.10034814,2939.6,2939.5,0.002]
[1765954600221,9.67764975,2939.6,2939.5,0.002]
[1765954601151,3.90368633,2939.2,2939.1,0.002]
[1765954601352,4.29405496,2939.2,2939.1,0.002]
[1765954605222,0.89176863,2939.2,2939.1,0.002]
[1765954606553,4.29405496,2939.2,2939.1,0.002]
[1765954614956,0.89176863,2939.2,2939.1,0.002]
[1765954615133,0.2458,2939.2,2939.1,0.002]
[1765954615343,0.4977,2939.6,2939.1,0.4843]
[1765954615736,0.4977,2939.6,2939.2,0.4823]
[1765954615935,0.001,2939.6,2939.2,0.4823]
[1765954616142,0.001,2939.5,2939.4,0.452]
[1765954616540,0.2468,2939.5,2939.2,4.30909966]
[1765954616760,0.741,2939.5,2939.2,3.82679966]
[1765954617065,0.2468,2939.5,2939.2,3.82679966]
[1765954617357,0.2468,2939.5,2939.2,4.30909966]
[1765954617572,0.2468,2939.5,2939.2,3.82679966]
[1765954617726,0.2468,2939.5,2939.2,7.22908599]
[1765954617928,0.741,2939.5,2939.2,7.22908599]
[1765954618748,0.001,2939.5,2939.4,0.452]
[1765954618954,0.001,2939.5,2939.4,0.9343]
[1765954619359,0.2468,2939.5,2939.3,0.7411386]
[1765954619858,0.001,2939.5,2939.3,0.7411386]
[1765954620031,0.001,2939.5,2939.3,1.2234386]
[1765954620536,0.001,2939.5,2939.4,0.452]
[1765954620725,0.001,2939.5,2939.4,4.33635484]
[1765954621569,0.001,2939.5,2939.4,9.16405325]
[1765954621943,0.001,2939.5,2939.4,12.74339218]
[1765954622268,0.001,2939.5,2939.4,12.75366932]
[1765954623590,0.001,2939.5,2939.4,13.62355355]
[1765954626480,0.001,2939.5,2939.4,14.16155355]
[1765954629185,0.001,2939.5,2939.4,9.76472966]
[1765954629346,0.001,2939.5,2939.4,10.30172966]
[1765954629669,0.001,2939.5,2939.4,9.76472966]
[1765954629880,0.4746,2939.5,2939.4,3.40205484]
[1765954630087,0.7409,2939.5,2939.4,3.40205484]
[1765954630585,0.4746,2939.5,2939.3,3.40217002]
[1765954630885,0.4746,2939.5,2939.3,6.8043406]
[1765954632053,0.7409,2939.5,2939.4,0.002]
[1765954635466,0.001,2939.5,2939.4,4.52483893]
[1765954636160,0.001,2939.5,2939.4,7.92689377]
[1765954636791,0.001,2939.5,2939.4,4.34755484]
[1765954640376,0.2817,2939.5,2939.4,3.40405484]
[1765954640790,0.7427,2939.5,2939.4,3.40405484]
[1765954640990,0.2817,2939.5,2939.4,3.40405484]
[1765954641885,0.7427,2939.5,2939.4,3.40405484]
[1765954642391,0.001,2939.5,2939.4,3.89605484]
[1765954642582,0.001,2939.5,2939.4,4.34755484]
[1765954647712,0.001,2939.5,2939.4,4.96503633]
[1765954650672,0.001,2939.5,2939.4,4.97531347]
[1765954650864,0.001,2939.5,2939.4,9.47976722]
[1765954654668,0.001,2939.5,2939.4,5.9024937]
[1765954659606,0.001,2939.5,2939.4,9.47976722]
[1765954662106,0.001,2939.5,2939.4,12.31876122]
[1765954662678,0.001,2939.5,2939.4,20.66214995]
[1765954663626,0.001,2940.1,2940.0,0.927]
[1765954663898,0.001,2940.1,2940.0,5.04127352]
[1765954664082,0.001,2940.1,2940.0,8.94778913]
[1765954664400,0.001,2940.1,2940.0,9.4224465]
[1765954664908,0.001,2940.1,2940.0,9.5587255]
[1765954668007,0.001,2940.1,2940.0,9.09434527]
[1765954674504,0.001,2940.1,2940.0,9.5587255]
[1765954676011,0.001,2940.1,2940.0,9.09434527]
[1765954676716,0.001,2940.1,2940.0,5.51707175]
[1765954676922,0.001,2940.1,2940.0,9.09434527]
[1765954678802,0.001,2940.1,2940.0,8.95806627]
[1765954679221,0.001,2940.1,2940.0,8.95516035]
[1765954690234,0.001,2940.1,2940.0,4.32836054]
[1765954690536,0.001,2940.1,2940.0,4.38916054]
[1765954690740,0.001,2940.1,2940.0,4.88826054]
[1765954696525,0.001,2940.1,2940.0,4.35126054]
[1765954696744,0.001,2940.1,2940.0,4.88826054]
[1765954700550,0.001,2940.1,2940.0,5.71826159]
[1765954700747,0.001,2940.1,2940.0,9.30290633]
[1765954701352,0.001,2940.1,2940.0,13.34165416]
[1765954701551,0.001,2940.1,2940.0,16.91500718]
[1765954701744,0.001,2940.1,2940.0,9.76627198]
[1765954701922,0.001,2940.1,2940.0,8.42689379]
[1765954702121,0.001,2940.1,2940.0,8.92599379]
[1765954703150,0.001,2940.1,2940.0,5.35264077]
[1765954703350,0.001,2940.1,2940.0,4.81564077]
[1765954703554,0.001,2940.1,2940.0,5.35264077]
[1765954703719,0.001,2940.1,2940.0,4.85354077]
[1765954704252,0.001,2940.1,2940.0,5.35264077]
[1765954705663,0.001,2940.1,2940.0,5.72807891]
[1765954712259,0.001,2940.1,2940.0,5.22897891]
[1765954713465,0.001,2940.1,2940.0,5.72807891]
[1765954713931,0.001,2940.1,2940.0,5.22897891]
[1765954714134,0.001,2940.1,2940.0,4.85354077]
[1765954714761,0.2575,2940.1,2940.0,4.85354077]
[1765954715962,0.001,2940.1,2940.0,4.85354077]
[1765954716668,0.001,2940.1,2940.0,5.34984077]
[1765954726843,0.001,2940.1,2940.0,5.36011791]
[1765954727043,0.001,2940.1,2940.0,6.59464]
[1765954730771,0.001,2940.1,2940.0,6.09834]
[1765954730949,0.001,2940.1,2940.0,6.59464]
[1765954734267,0.001,2940.1,2940.0,10.16799302]
[1765954735786,0.001,2940.1,2940.0,6.09834]
[1765954736180,0.001,2940.1,2940.0,6.59464]
[1765954736765,0.1529,2940.1,2940.0,5.55106286]
[1765954736969,0.001,2940.1,2940.0,4.88974077]
[1765954737370,0.001,2940.1,2940.0,5.38604077]
[1765954742789,0.4932,2940.1,2940.0,4.88974077]
[1765954742978,0.4932,2940.1,2940.0,4.40274077]
[1765954743181,0.001,2940.1,2940.0,4.84904077]
[1765954743391,0.001,2940.1,2940.0,5.38604077]
[1765954745393,0.001,2940.1,2940.0,6.67055515]
[1765954747382,0.001,2940.1,2940.0,10.25418531]
[1765954748087,0.001,2940.1,2940.0,10.25556508]
[1765954751995,0.001,2940.1,2940.0,9.74898794]
[1765954752200,0.001,2940.1,2940.0,4.87314077]
[1765954752373,0.001,2940.1,2940.0,5.37144077]
[1765954754574,0.001,2940.1,2940.0,8.9564507]
[1765954763412,0.001,2940.1,2940.0,5.38171791]
[1765954776611,0.001,2940.1,2940.0,5.41573151]
[1765954776812,0.001,2940.1,2940.0,6.65594419]
[1765954777121,0.001,2940.1,2940.0,6.62193059]
[1765954781625,0.001,2940.1,2940.0,7.02743459]
[1765954781827,0.001,2940.1,2940.0,7.50853459]
[1765954783803,0.001,2940.1,2940.0,4.39916054]
[1765954784233,0.001,2940.1,2940.0,4.89416054]
[1765954787230,0.001,2940.1,2940.0,4.39916054]
[1765954790515,0.001,2940.1,2940.0,4.89416054]
[1765954791510,0.001,2940.1,2940.0,4.90443768]
[1765954791705,0.001,2940.1,2940.0,6.09352098]
[1765954798806,0.001,2940.1,2940.0,9.6681663]
[1765954800114,0.001,2940.1,2940.0,10.1492663]
[1765954800912,0.001,2940.1,2940.0,13.72391162]
[1765954801312,0.001,2940.8,2940.7,0.4608]
[1765954801513,0.1482,2941.6,2941.2,7.84249064]
[1765954801712,0.1482,2941.6,2941.3,0.537]
[1765954801915,0.0048,2941.3,2940.8,6.8008705]
[1765954802134,0.4815,2940.9,2940.8,3.40043525]
[1765954802456,0.4815,2940.9,2940.8,3.93743525]
[1765954802657,0.6274,2940.9,2940.8,4.41893525]
[1765954802949,0.8165,2940.9,2940.8,3.88193525]
[1765954803119,0.8165,2940.9,2940.8,4.41893525]
[1765954805134,0.8165,2940.9,2940.8,3.88193525]
[1765954805339,0.0019,2940.4,2940.3,0.46438023]
[1765954805674,0.4548,2940.4,2940.3,3.4010135]
[1765954805815,0.4548,2940.4,2940.3,3.9380135]
[1765954806731,0.6246,2940.2,2940.1,3.40112942]
[1765954807030,0.6246,2940.2,2940.1,3.93812942]
[1765954807031,0.1727,2940.2,2940.1,3.93812942]
[1765954807621,0.6246,2940.2,2940.1,3.93812942]
[1765954810467,0.001,2940.4,2940.0,3.40132293]
[1765954810468,0.4574,2940.1,2940.0,3.40132293]
[1765954810626,0.0045,2940.1,2940.0,3.40132293]
[1765954810826,0.0045,2940.1,2939.9,3.40147624]
[1765954811736,0.0045,2940.1,2939.9,6.80295248]
[1765954811921,0.001,2940.4,2939.9,3.40147624]
[1765954811922,0.1701,2940.0,2939.9,3.40147624]
[1765954812126,0.623,2940.0,2939.9,3.40147624]
[1765954812523,0.1701,2940.0,2939.9,3.40147624]
[1765954813629,0.623,2940.0,2939.9,3.40147624]
[1765954813853,0.623,2940.0,2939.9,3.93847624]
[1765954814957,0.623,2940.0,2939.9,3.94047624]
[1765954816445,0.623,2940.0,2939.9,3.40347624]
[1765954817569,0.623,2940.0,2939.9,0.002]
[1765954817771,5.04978983,2940.0,2939.9,0.002]
[1765954819142,1.64842929,2940.0,2939.9,0.002]
[1765954819570,5.04978983,2940.0,2939.9,0.002]
[1765954821568,1.64842929,2940.0,2939.9,0.002]
[1765954821941,5.04978983,2940.0,2939.9,0.002]
[1765954823257,1.64842929,2940.0,2939.9,0.002]
[1765954823783,5.04978983,2940.0,2939.9,0.002]
[1765954827995,5.58678983,2940.0,2939.9,0.002]
[1765954828295,5.58678983,2940.0,2939.5,0.002]
[1765954828296,0.4591,2939.6,2939.5,0.002]
[1765954829067,0.59544961,2939.6,2939.5,0.002]
[1765954832056,4.40491507,2939.6,2939.5,0.002]
[1765954832283,8.44649913,2939.6,2939.5,0.002]
[1765954832567,0.4619,2939.2,2939.1,0.002]
[1765954833794,0.5982682,2939.2,2939.1,0.002]
[1765954833982,4.00055453,2939.2,2939.1,0.002]
[1765954834180,5.14497865,2939.2,2939.1,0.002]
[1765954834494,1.74269232,2939.2,2939.1,0.002]
[1765954834666,0.5982682,2939.2,2939.1,0.002]
[1765954836489,0.009,2939.2,2939.1,3.57920383]
[1765954836661,0.63054821,2939.5,2939.1,3.57920383]
[1765954837005,0.0792,2939.7,2939.3,3.57720383]
[1765954837006,0.547,2939.7,2939.3,3.57720383]
[1765954837291,0.6587,2939.9,2939.6,3.57720383]
[1765954837460,0.6587,2940.1,2939.6,4.58760383]
[1765954837663,0.1653,2939.9,2939.8,3.57720383]
[1765954838387,0.1653,2939.9,2939.8,6.97879577]
[1765954839088,0.1909,2940.1,2939.8,10.38038771]
[1765954839683,0.6587,2940.1,2939.8,10.38038771]
[1765954840268,0.001,2940.4,2939.8,10.38038771]
[1765954840472,0.001,2940.4,2940.0,4.07670383]
[1765954840473,0.4657,2940.4,2940.0,4.07670383]
[1765954841076,0.4657,2940.4,2940.0,3.57720383]
[1765954841279,0.1683,2940.1,2940.0,3.57720383]
[1765954841691,0.4657,2940.4,2940.0,3.57720383]
[1765954841860,0.001,2940.1,2940.0,3.57720383]
[1765954842061,0.1693,2940.1,2940.0,3.57720383]
[1765954842561,0.001,2940.1,2940.0,13.31660257]
[1765954843298,0.001,2940.1,2940.0,13.7809828]
[1765954843587,0.001,2940.1,2940.0,14.1864868]
[1765954844100,0.001,2940.1,2940.0,13.6494868]
[1765954844277,0.001,2940.1,2940.0,14.1874868]
[1765954845562,0.001,2940.1,2940.0,13.2439828]
[1765954845787,0.001,2940.1,2940.0,13.7819828]
[1765954846966,0.001,2940.1,2940.0,13.2439828]
[1765954847166,0.001,2940.1,2940.0,12.7715828]
[1765954847476,0.001,2940.1,2940.0,13.3085828]
[1765954847785,0.001,2940.1,2940.0,13.7809828]
[1765954848775,0.001,2940.1,2940.0,13.3085828]
[1765954849465,0.001,2940.1,2940.0,13.7809828]
[1765954850600,0.001,2940.1,2940.0,13.3085828]
[1765954850790,0.001,2940.1,2940.0,14.2487828]
[1765954855303,0.001,2940.1,2940.0,10.67157897]
[1765954855491,0.001,2940.1,2940.0,13.7117828]
[1765954855692,0.001,2940.1,2940.0,14.2487828]
[1765954856278,0.001,2940.1,2940.0,12.99684843]
[1765954857508,0.001,2940.1,2940.0,12.52444843]
[1765954859108,0.001,2940.1,2940.0,11.98744843]
[1765954859302,0.001,2940.1,2940.0,12.52444843]
[1765954860112,0.001,2940.1,2940.0,12.05664843]
[1765954860706,0.001,2940.1,2940.0,14.61018564]
[1765954861009,0.001,2940.1,2940.0,14.62046278]
[1765954861326,0.001,2940.4,2940.3,4.83729373]
[1765954861478,0.001,2940.4,2940.3,11.99170139]
[1765954862089,0.001,2940.4,2940.3,12.00197853]
[1765954862407,0.001,2941.3,2941.2,0.4995]
[1765954862576,0.001,2941.3,2941.2,8.66330766]
[1765954862779,0.001,2941.3,2941.2,5.08610383]
[1765954863185,0.001,2941.3,2941.2,12.06328046]
[1765954864108,0.001,2941.3,2941.2,8.48607663]
[1765954864302,0.001,2941.3,2941.2,12.06328046]
[1765954866097,0.001,2941.3,2941.2,8.01367663]
[1765954867312,0.001,2941.3,2941.2,12.05338046]
[1765954868511,0.1642,2941.3,2941.2,4.4364728]
[1765954868718,0.1672,2941.3,2941.2,4.4364728]
[1765954868901,0.6293,2941.3,2941.2,3.9369728]